bitfinex/quotes_ETHUSD_20220106
["timestamp","ask_amount","ask_price","bid_price","bid_amount"]
[1641429195384,1.34830327,3535.5,3534.9,0.00625266]
[1641429195584,3.18870619,3535.4,3534.9,0.00625266]
[1641429195784,3.18870619,3535.4,3534.3,1.5]
[1641429195785,0.7075801,3534.9,3534.3,1.5]
[1641429195985,0.7075801,3534.9,3534.4,0.00909477]
[1641429196386,0.7075801,3534.9,3534.3,1.5]
[1641429196589,1.0,3535.1,3533.4,0.345]
[1641429196590,1.4153288,3534.3,3533.4,0.345]
[1641429196852,1.38824681,3534.8,3533.4,0.345]
[1641429197054,0.00511581,3534.2,3533.4,0.345]
[1641429197255,1.0,3534.7,3533.4,0.345]
[1641429197256,0.00795793,3534.7,3533.4,0.345]
[1641429197454,0.00454738,3534.1,3533.4,0.345]
[1641429197655,1.1786046,3534.1,3533.4,0.345]
[1641429197859,0.00397896,3534.0,3533.4,0.345]
[1641429198255,0.00341054,3533.9,3533.4,0.345]
[1641429198455,0.00341054,3533.9,3533.4,0.645]
[1641429198759,0.00284211,3533.8,3533.4,0.645]
[1641429199157,0.00227369,3533.7,3533.4,0.645]
[1641429199653,0.00170527,3533.6,3533.4,0.645]
[1641429200057,0.333,3533.7,3533.4,0.645]
[1641429200058,0.00113684,3533.5,3533.4,0.645]
[1641429200586,3.684e-05,3533.7,3533.4,0.749645]
[1641429200782,3.684e-05,3533.7,3533.4,0.76232726]
[1641429200981,0.333,3534.2,3533.4,1.76232726]
[1641429201384,0.00341054,3534.1,3533.4,1.76232726]
[1641429201785,0.00204212,3534.0,3533.7,1.53563498]
[1641429201985,0.00204212,3534.0,3533.8,0.345]
[1641429202186,0.0014737,3533.9,3533.8,0.38499551]
[1641429202385,0.0015737,3534.2,3533.8,0.38499551]
[1641429202691,0.00113684,3534.1,3533.8,17.0505445]
[1641429202885,0.00113684,3534.1,3534.0,0.03878178]
[1641429203088,0.00113684,3534.1,3534.0,0.68378178]
[1641429203285,0.00113684,3534.1,3534.0,0.74933077]
[1641429203684,0.33413684,3534.1,3534.0,3.08479094]
[1641429204335,0.33413684,3534.1,3534.0,0.645]
[1641429205536,0.33413684,3534.1,3534.0,0.68278337]
[1641429205738,0.66713684,3534.1,3534.0,0.68278337]
[1641429206845,0.66713684,3534.1,3534.0,0.345]
[1641429207844,1.00013684,3534.1,3534.0,0.345]
[1641429208302,1.00013684,3534.1,3534.0,0.67951375]
[1641429209799,0.26949926,3534.1,3534.0,0.67951375]
[1641429210001,0.60249926,3534.1,3534.0,0.75734385]
[1641429210300,0.0015737,3534.2,3534.0,0.75734385]
[1641429210301,0.0015737,3534.2,3534.1,0.33309926]
[1641429210501,16.9562,3536.1,3534.1,0.70940289]
[1641429210701,16.9562,3536.1,3534.1,1.77495188]
[1641429210905,0.01080005,3536.0,3535.2,0.70709]
[1641429211101,0.01080005,3536.0,3535.3,0.37890975]
[1641429211303,0.01023163,3535.9,3535.3,0.44445874]
[1641429211701,0.0096632,3535.8,3535.3,0.44445874]
[1641429212136,0.00909478,3535.7,3535.4,0.70704]
[1641429212336,0.00909478,3535.7,3535.5,0.6802542]
[1641429212539,0.00852636,3535.6,3535.5,0.945]
[1641429214141,0.34152636,3535.6,3535.5,0.945]
[1641429216284,0.67452636,3535.6,3535.5,0.945]
[1641429216784,0.67452636,3535.6,3535.5,17.88694893]
[1641429216985,0.333,3535.8,3535.5,17.88694893]
[1641429217187,0.333,3535.8,3535.5,18.89968681]
[1641429217386,0.333,3535.8,3535.6,0.1088]
[1641429217590,0.333,3535.8,3535.7,0.345]
[1641429217791,0.333,3535.8,3535.7,0.71054899]
[1641429218090,0.33413684,3535.8,3535.7,1.01054899]
[1641429218289,0.999,3536.2,3535.7,17.61054899]
[1641429218489,0.999,3536.2,3536.0,0.49478]
[1641429218693,0.00170527,3536.1,3536.0,0.79478]
[1641429218892,0.00170527,3536.1,3536.0,1.43978]
[1641429219537,0.00170527,3536.1,3536.0,0.345]
[1641429220342,0.33470527,3536.1,3536.0,0.345]
[1641429221143,0.33470527,3536.1,3536.0,0.645]
[1641429222344,0.66770527,3536.1,3536.0,0.645]
[1641429222745,0.66770527,3536.1,3536.0,0.7434678]
[1641429222944,5.27e-06,3536.1,3536.0,0.7434678]
[1641429223187,0.333,3536.9,3536.0,0.7434678]
[1641429223388,0.333,3536.9,3536.4,0.70677]
[1641429223588,0.00397897,3536.8,3536.5,0.345]
[1641429223797,0.333,3537.2,3536.7,20.917]
[1641429223996,0.0001,3537.3,3536.9,16.6]
[1641429224194,0.00170527,3537.1,3537.0,0.345]
[1641429224396,0.00170527,3537.1,3537.0,1.845]
[1641429224596,0.00170527,3537.1,3537.0,2.48277331]
[1641429225198,0.00170527,3537.1,3537.0,2.145]
[1641429225595,0.00170527,3537.1,3537.0,2.445]
[1641429226396,0.33470527,3537.1,3537.0,2.445]
[1641429227530,0.33470527,3537.1,3537.0,2.145]
[1641429227734,0.33470527,3537.1,3537.0,1.8]
[1641429228434,3.31325618,3538.0,3537.0,1.8]
[1641429228435,0.01213521,3538.7,3537.1,1.09747473]
[1641429228635,3.9124,3538.8,3537.9,0.0127154]
[1641429228835,3.7492,3538.9,3538.0,0.345]
[1641429229036,3.7492,3538.9,3538.0,2.145]
[1641429229238,1.95368423,3538.1,3538.0,2.47997705]
[1641429230238,1.75389505,3538.1,3538.0,2.445]
[1641429230440,2.08689505,3538.1,3538.0,7.64958784]
[1641429230711,2.08689505,3538.1,3538.0,25.214]
[1641429230912,2.08689505,3538.1,3538.0,24.214]
[1641429231108,2.08689505,3538.1,3538.0,7.614]
[1641429232109,2.08689505,3538.1,3538.0,2.145]
[1641429232310,2.08689505,3538.1,3538.0,2.445]
[1641429232508,2.41989505,3538.1,3538.0,2.445]
[1641429234531,2.75289505,3538.1,3538.0,2.445]
[1641429234932,2.75289505,3538.1,3538.0,3.445]
[1641429236639,3.08589505,3538.1,3538.0,3.445]
[1641429237738,3.08589505,3538.1,3538.0,22.09710918]
[1641429238280,0.333,3539.0,3538.0,22.09710918]
[1641429238479,0.333,3539.0,3538.7,1.4127589]
[1641429238679,0.00454739,3538.9,3538.8,0.345]
[1641429238880,0.00454739,3538.9,3538.8,2.145]
[1641429239080,0.00454739,3538.9,3538.8,2.445]
[1641429239478,0.42054739,3539.0,3538.8,2.445]
[1641429239682,0.42054739,3539.0,3538.8,2.93943]
[1641429240682,0.42054739,3539.0,3538.8,2.97731496]
[1641429240882,0.42054739,3539.0,3538.8,2.48288496]
[1641429240883,0.75354739,3539.0,3538.8,2.48288496]
[1641429241082,0.75354739,3539.0,3538.8,2.445]
[1641429241284,0.75354739,3539.0,3538.8,1.5]
[1641429242345,0.75354739,3539.0,3538.9,0.345]
[1641429242939,1.08654739,3539.0,3538.9,0.645]
[1641429243139,1.08654739,3539.0,3538.9,0.67843306]
[1641429244946,1.41954739,3539.0,3538.9,0.67843306]
[1641429245588,1.41954739,3539.0,3538.9,0.645]
[1641429245787,1.41954739,3539.0,3538.9,0.67977658]
[1641429246786,1.41954739,3539.0,3538.9,0.345]
[1641429246989,1.75254739,3539.0,3538.2,0.345]
[1641429247391,1.75254739,3539.0,3538.3,0.00341054]
[1641429247894,1.75254739,3539.0,3538.3,0.70996054]
[1641429248293,1.75254739,3539.0,3538.4,0.00284212]
[1641429248497,1.75254739,3539.0,3538.4,0.30284212]
[1641429248895,1.75254739,3539.0,3538.5,0.00227369]
[1641429249096,1.39264667,3538.7,3538.5,0.00227369]
[1641429249342,2.08554739,3539.0,3538.5,0.30227369]
[1641429249544,2.08554739,3539.0,3538.6,0.345]
[1641429249743,7.08554739,3539.0,3538.6,0.38281312]
[1641429250047,7.08554739,3539.0,3538.7,0.00113685]
[1641429251346,7.41854739,3539.0,3538.8,0.345]
[1641429251547,7.41854739,3539.0,3538.8,0.645]
[1641429251744,7.41854739,3539.0,3538.8,0.67703823]
[1641429251944,7.41854739,3539.0,3538.8,0.645]
[1641429252344,8.81634767,3539.0,3538.8,0.645]
[1641429252544,8.81724101,3539.0,3538.8,0.645]
[1641429253382,9.15024101,3539.0,3538.8,0.645]
[1641429253786,7.75333407,3539.0,3538.8,0.645]
[1641429253983,7.75333407,3539.0,3538.8,0.67569425]
[1641429254682,7.75333407,3539.0,3538.8,0.645]
[1641429254882,7.75333407,3539.0,3538.8,0.67518672]
[1641429255084,7.75333407,3539.0,3538.8,0.645]
[1641429255287,7.75333407,3539.0,3538.8,0.67684078]
[1641429255494,8.08633407,3539.0,3538.8,0.645]
[1641429255886,8.08633407,3539.0,3538.8,0.68193306]
[1641429256087,8.08633407,3539.0,3538.8,0.645]
[1641429256286,8.08633407,3539.0,3538.8,0.68061052]
[1641429256490,8.08633407,3539.0,3538.8,0.645]
[1641429256691,8.08633407,3539.0,3538.8,0.68130964]
[1641429256940,8.08633407,3539.0,3538.8,0.645]
[1641429257443,8.08633407,3539.0,3538.8,0.67784098]
[1641429257644,8.41933407,3539.0,3538.8,0.67784098]
[1641429258043,8.41933407,3539.0,3538.8,1.67784098]
[1641429258244,8.41933407,3539.0,3538.8,0.67784098]
[1641429258446,8.41933407,3539.0,3538.8,1.67784098]
[1641429258946,8.41933407,3539.0,3538.8,2.38875213]
[1641429259346,8.41933407,3539.0,3538.8,3.37759213]
[1641429259746,4.91783331,3539.0,3538.9,3.5]
[1641429259945,4.91783331,3539.0,3538.9,3.87609713]
[1641429260145,4.91783331,3539.0,3538.9,5.47609713]
[1641429260804,4.91783331,3539.0,3538.9,4.08263888]
[1641429261812,5.25083331,3539.0,3538.9,3.08263888]
[1641429262016,5.25083331,3539.0,3538.9,0.97609713]
[1641429262411,5.25083331,3539.0,3538.9,0.67609713]
[1641429262612,5.25083331,3539.0,3538.9,0.97609713]
[1641429263015,5.25083331,3539.0,3538.9,0.67609713]
[1641429263214,5.25083331,3539.0,3538.9,0.97609713]
[1641429263513,5.25083331,3539.0,3538.9,0.67609713]
[1641429263914,5.58383331,3539.0,3538.9,0.67609713]
[1641429265034,5.58383331,3539.0,3538.9,1.67609713]
[1641429266031,5.91683331,3539.0,3538.9,1.67609713]
[1641429267033,5.91683331,3539.0,3538.9,3.78798971]
[1641429267432,5.91683331,3539.0,3538.9,2.48798971]
[1641429268113,6.24983331,3539.0,3538.9,2.48798971]
[1641429268319,0.60005331,3539.0,3538.9,2.48798971]
[1641429268516,0.60005331,3539.0,3538.9,3.08798971]
[1641429268714,0.60005331,3539.0,3538.9,4.08798971]
[1641429269212,0.60005331,3539.0,3538.9,7.58798971]
[1641429270019,0.93305331,3539.0,3538.9,7.58798971]
[1641429270517,0.93305331,3539.0,3538.9,5.47609713]
[1641429272138,1.26605331,3539.0,3538.9,3.845]
[1641429272340,1.26605331,3539.0,3538.9,3.87853893]
[1641429272539,1.26605331,3539.0,3538.9,0.345]
[1641429273745,1.26605331,3539.0,3538.9,0.645]
[1641429273947,1.26605331,3539.0,3538.9,0.68026957]
[1641429274146,1.59905331,3539.0,3538.9,0.98026957]
[1641429274950,1.59905331,3539.0,3538.9,0.68026957]
[1641429275150,1.59905331,3539.0,3538.9,0.98026957]
[1641429275795,0.7025776,3539.7,3538.9,0.98026957]
[1641429275998,0.7025776,3539.7,3539.4,1.00628]
[1641429276200,0.00397897,3539.6,3539.5,0.345]
[1641429276597,0.00397897,3539.6,3539.5,1.88018498]
[1641429278200,0.33697897,3539.6,3539.5,1.88018498]
[1641429279748,0.33697897,3539.6,3539.5,0.38018498]
[1641429280348,0.66997897,3539.6,3539.5,0.38018498]
[1641429282451,1.00297897,3539.6,3539.5,0.38018498]
[1641429284493,1.33597897,3539.6,3539.5,0.38018498]
[1641429285793,1.31957897,3539.6,3539.5,2.41339474]
[1641429285993,1.31957897,3539.6,3539.5,2.42168327]
[1641429286193,1.31957897,3539.6,3539.5,0.38018498]
[1641429286595,1.65257897,3539.6,3539.5,0.38018498]
[1641429287849,1.65257897,3539.6,3539.5,2.38599537]
[1641429288548,1.65257897,3539.6,3539.5,2.39447069]
[1641429288748,1.98557897,3539.6,3539.5,1.38018498]
[1641429289150,6.98557897,3539.6,3539.5,1.38018498]
[1641429289348,6.98557897,3539.6,3539.5,0.38018498]
[1641429290893,7.31857897,3539.6,3539.5,0.38018498]
[1641429292999,7.65157897,3539.6,3539.5,0.38018498]
[1641429295041,7.98457897,3539.6,3539.5,0.38018498]
[1641429297048,8.31757897,3539.6,3539.5,0.38018498]
[1641429297851,8.26757897,3539.6,3539.5,0.38018498]
[1641429299094,8.60057897,3539.6,3539.5,0.38018498]
[1641429300397,8.60057897,3539.6,3539.5,3.36462671]
[1641429300599,8.60057897,3539.6,3539.5,1.38018498]
[1641429301199,8.93357897,3539.6,3539.5,1.38018498]
[1641429302548,8.93357897,3539.6,3539.5,0.38018498]
[1641429303351,9.26657897,3539.6,3539.5,0.38018498]
[1641429303550,9.26657897,3539.6,3539.5,1.38018498]
[1641429304954,9.26657897,3539.6,3539.5,1.50384998]
[1641429305353,9.59957897,3539.6,3539.5,1.50384998]
[1641429306395,9.59957897,3539.6,3539.5,0.468665]
[1641429306594,9.59957897,3539.6,3539.4,0.70628]
[1641429306795,9.59957897,3539.6,3539.4,1.20081]
[1641429307397,9.93257897,3539.6,3539.4,1.20081]
[1641429307796,9.93257897,3539.6,3539.4,1.94390088]
[1641429307997,9.93257897,3539.6,3539.5,0.37541624]
[1641429308197,9.93257897,3539.6,3539.5,1.37541624]
[1641429308397,9.93257897,3539.6,3539.5,0.37541624]
[1641429309749,10.26557897,3539.6,3539.5,0.37541624]
[1641429311351,10.26557897,3539.6,3539.5,1.37541624]
[1641429311550,10.26557897,3539.6,3539.5,19.97541624]
[1641429311750,4.31273838,3539.6,3539.5,20.05306591]
[1641429311950,4.31273838,3539.6,3539.5,18.05306591]
[1641429312154,2.332,3540.0,3539.8,16.6]
[1641429312354,0.333,3540.8,3540.4,1.15817726]
[1641429312550,0.333,3541.3,3540.7,0.01272703]
[1641429312761,0.283,3541.2,3541.0,0.26]
[1641429312953,0.283,3541.2,3541.1,0.345]
[1641429313196,0.283,3541.2,3541.1,0.645]
[1641429313406,0.283,3541.2,3541.1,1.78782022]
[1641429313409,0.29209477,3541.2,3541.1,1.78782022]
[1641429313601,0.333,3541.3,3541.1,1.78782022]
[1641429313602,0.333,3541.3,3541.1,108.17036921]
[1641429313796,0.7025776,3541.8,3541.3,0.112]
[1641429313997,2.664,3542.6,3541.6,4.317]
[1641429314204,0.00284212,3541.7,3541.6,4.317]
[1641429314396,2.664,3542.6,3541.7,1.1056]
[1641429314596,2.664,3542.6,3542.4,1.11434912]
[1641429314798,2.664,3542.6,3542.4,1.49596831]
[1641429315098,2.664,3542.6,3542.4,2.09596831]
[1641429315298,2.664,3542.6,3542.4,2.05934912]
[1641429315700,1.56024954,3542.6,3542.5,16.6]
[1641429315898,1.56024954,3542.6,3542.5,17.0666]
[1641429316099,6.17,3543.6,3543.0,0.705372]
[1641429316299,0.7025776,3543.9,3543.2,0.70538]
[1641429316599,1.98643317,3543.9,3543.4,0.49379]
[1641429316842,1.98643317,3543.9,3543.5,0.345]
[1641429317044,1.09332053,3543.7,3543.5,0.645]
[1641429317244,1.09332053,3543.7,3543.5,0.345]
[1641429317542,0.00568423,3543.6,3543.5,0.345]
[1641429317747,0.00568423,3543.6,3543.5,0.0001]
[1641429317950,0.33868423,3543.6,3543.5,0.0001]
[1641429318748,0.33868423,3543.6,3542.7,0.345]
[1641429318947,0.33868423,3543.6,3542.4,0.7057193]
[1641429318948,0.33868423,3543.6,3542.8,0.345]
[1641429319148,0.33868423,3543.6,3542.4,0.345]
[1641429319149,0.00511581,3543.5,3542.4,0.345]
[1641429319346,1.21843873,3542.5,3542.4,0.345]
[1641429319748,1.21843873,3542.5,3542.4,0.34613685]
[1641429320049,1.55143873,3542.5,3542.4,0.34613685]
[1641429320250,1.55143873,3542.5,3542.4,0.64613685]
[1641429320694,0.333,3542.5,3542.4,0.64613685]
[1641429322195,0.666,3542.5,3542.4,0.64613685]
[1641429324200,0.999,3542.5,3542.4,0.64613685]
[1641429325445,0.999,3542.5,3542.4,0.67946592]
[1641429325848,0.999,3542.5,3542.4,2.67946592]
[1641429326047,0.00454739,3543.4,3542.4,1.67946592]
[1641429326246,0.00454739,3543.4,3542.4,1.74501491]
[1641429326247,0.333,3542.5,3542.4,1.74501491]
[1641429326448,0.00397896,3543.3,3542.4,1.74501491]
[1641429326648,0.00397896,3543.3,3542.4,0.74501491]
[1641429326848,0.00341054,3543.2,3542.5,1.37769646]
[1641429327052,0.00341054,3543.2,3542.6,0.345]
[1641429327248,1.44890326,3543.6,3542.6,0.345]
[1641429327249,0.00284212,3543.1,3542.6,0.345]
[1641429327448,0.00284212,3543.1,3542.8,1.2699624]
[1641429327652,0.00227369,3543.0,3542.9,0.68248858]
[1641429328396,0.33527369,3543.0,3542.9,0.68248858]
[1641429328999,0.32545372,3543.0,3542.9,0.68248858]
[1641429330402,0.66762605,3543.0,3542.9,0.68248858]
[1641429330602,0.63744366,3543.0,3542.9,0.68248858]
[1641429330806,0.63744366,3543.0,3542.9,0.645]
[1641429331302,0.63744366,3543.0,3542.9,0.68225187]
[1641429331944,0.26544366,3543.0,3542.9,0.68225187]
[1641429332344,0.26544366,3543.0,3542.4,1.44611513]
[1641429332546,0.59844366,3543.0,3542.4,1.41255475]
[1641429332750,0.59844366,3543.0,3542.3,0.345]
[1641429332751,0.59844366,3543.0,3542.5,0.00284211]
[1641429333149,1.47011314,3542.6,3542.4,0.00341054]
[1641429333351,1.01886409,3542.5,3542.4,0.00341054]
[1641429333549,1.01886409,3542.5,3541.4,0.0127231]
[1641429333550,1.01886409,3542.5,3541.8,0.70585]
[1641429333851,1.01886409,3542.5,3541.4,0.345]
[1641429334049,1.01886409,3542.5,3541.2,1.4118864]
[1641429334249,0.00284212,3542.4,3541.5,0.00227369]
[1641429334649,0.0022737,3542.3,3541.5,0.00227369]
[1641429335054,0.00170528,3542.2,3541.1,0.00454738]
[1641429335449,0.00113685,3542.1,3541.1,0.00454738]
[1641429335899,1.00655892,3541.7,3541.1,0.00454738]
[1641429336098,1.33342396,3541.7,3541.0,0.03296098]
[1641429336296,1.33342396,3541.7,3541.0,0.33807679]
[1641429336496,1.33342396,3541.7,3541.1,0.00454738]
[1641429336699,1.66642396,3541.7,3541.1,0.00454738]
[1641429337298,1.66642396,3541.7,3541.0,1.0060568]
[1641429337501,1.66642396,3541.7,3541.1,0.00454738]
[1641429338103,1.05405094,3541.5,3541.1,0.00454738]
[1641429338606,1.00405094,3541.5,3541.1,0.00454738]
[1641429338802,0.333,3541.5,3541.1,0.00454738]
[1641429339947,0.333,3541.5,3541.1,0.30454738]
[1641429340148,0.333,3541.5,3541.1,0.00454738]
[1641429340348,0.333,3541.5,3541.2,0.00397896]
[1641429340547,0.333,3541.5,3541.1,0.30454738]
[1641429340848,0.333,3541.5,3541.2,0.00397896]
[1641429341048,0.666,3541.5,3541.2,0.70999486]
[1641429341447,0.666,3541.5,3541.3,0.00341054]
[1641429341650,0.666,3541.5,3541.4,0.345]
[1641429341848,0.666,3541.5,3541.4,0.41054899]
[1641429342051,0.666,3541.5,3541.4,1.04486697]
[1641429342249,0.333,3541.7,3541.4,1.04486697]
[1641429342649,0.333,3541.7,3541.5,0.06554899]
[1641429342849,0.333,3541.7,3541.6,0.345]
[1641429343094,0.666,3541.7,3541.6,0.64670527]
[1641429343295,0.666,3541.7,3541.6,0.74473713]
[1641429343498,0.666,3541.7,3541.6,1.04473713]
[1641429343695,0.666,3541.7,3541.6,1.01225426]
[1641429344097,0.666,3541.7,3541.6,0.64670527]
[1641429344897,0.666,3541.7,3541.6,0.34670527]
[1641429345099,0.999,3541.7,3541.6,0.34670527]
[1641429346097,0.999,3541.7,3541.6,0.64670527]
[1641429347250,1.332,3541.7,3541.6,0.64670527]
[1641429348454,0.0022737,3542.3,3541.6,0.71225426]
[1641429348654,0.0022737,3542.3,3541.9,0.56457]
[1641429348854,0.333,3542.4,3542.0,0.345]
[1641429349057,0.333,3542.4,3542.0,0.41054899]
[1641429349256,0.666,3542.4,3542.0,0.41168583]
[1641429349857,0.666,3542.4,3542.1,2.6815471]
[1641429350056,0.666,3542.4,3542.2,0.345]
[1641429350256,0.666,3542.4,3542.2,0.645]
[1641429350456,0.666,3542.4,3542.3,0.06554899]
[1641429350699,0.666,3542.4,3542.3,0.345]
[1641429350898,0.66713684,3542.4,3542.3,0.345]
[1641429351100,0.66713684,3542.4,3542.3,0.645]
[1641429351300,1.00013684,3542.4,3542.3,0.645]
[1641429352102,1.00013684,3542.4,3542.3,0.345]
[1641429352909,1.00013684,3542.4,3542.3,0.645]
[1641429353312,1.33313684,3542.4,3542.3,0.645]
[1641429355388,1.66613684,3542.4,3542.3,0.645]
[1641429355779,0.333,3542.4,3542.3,0.645]
[1641429355981,0.22960657,3542.4,3542.3,0.645]
[1641429357383,0.56260657,3542.4,3542.3,0.645]
[1641429358407,0.56260657,3542.4,3542.3,0.68319596]
[1641429358607,0.05310657,3542.4,3542.3,0.76170305]
[1641429358808,0.59844366,3543.0,3542.6,0.56438]
[1641429359007,0.59844366,3543.0,3542.8,1.0055]
[1641429359208,0.59844366,3543.0,3542.9,0.345]
[1641429359407,0.93144366,3543.0,3542.9,0.41054899]
[1641429359610,0.9348542,3543.0,3542.9,0.41054899]
[1641429359807,0.9348542,3543.0,3542.9,0.345]
[1641429361610,1.2678542,3543.0,3542.9,0.645]
[1641429362059,1.2678542,3543.0,3542.9,3.445]
[1641429362667,1.2678542,3543.0,3542.9,3.145]
[1641429363070,1.2678542,3543.0,3542.9,3.14883836]
[1641429363668,1.6008542,3543.0,3542.9,3.14883836]
[1641429363868,1.6008542,3543.0,3542.9,3.44883836]
[1641429364068,1.6008542,3543.0,3542.9,3.74883836]
[1641429364368,1.6008542,3543.0,3542.9,3.78070111]
[1641429365615,1.6008542,3543.0,3542.9,3.74883836]
[1641429365806,1.9338542,3543.0,3542.9,3.74883836]
[1641429367811,2.2668542,3543.0,3542.9,3.74883836]
[1641429368411,2.2668542,3543.0,3542.9,3.44883836]
[1641429369858,2.5998542,3543.0,3542.9,3.44883836]
[1641429371363,2.5998542,3543.0,3542.9,3.74883836]
[1641429372060,2.9328542,3543.0,3542.9,3.44883836]
[1641429372260,2.9328542,3543.0,3542.9,3.74883836]
[1641429373512,7.9328542,3543.0,3542.9,3.74883836]
[1641429374110,8.2658542,3543.0,3542.9,5.74883836]
[1641429374309,2.6229242,3543.0,3542.9,3.74883836]
[1641429374509,2.6229242,3543.0,3542.9,4.86361931]
[1641429374909,0.333,3543.6,3542.9,21.46361931]
[1641429375115,0.333,3543.6,3543.2,1.0053337]
[1641429375317,0.00284212,3543.5,3543.3,1.38478756]
[1641429375515,0.46841972,3543.9,3543.4,0.33031624]
[1641429375717,0.46841972,3543.9,3543.5,0.345]
[1641429375914,0.00170527,3543.8,3543.5,0.645]
[1641429376115,0.00170527,3543.8,3543.6,0.56432]
[1641429376318,0.80141972,3543.9,3543.7,0.345]
[1641429376515,0.80141972,3543.9,3543.8,0.345]
[1641429376956,0.80141972,3543.9,3543.8,0.33726]
[1641429377154,1.98760951,3543.9,3543.8,0.33726]
[1641429378162,2.32060951,3543.9,3543.8,0.33726]
[1641429379160,1.13441972,3543.9,3543.8,0.33726]
[1641429380260,1.46741972,3543.9,3543.8,0.33726]
[1641429382308,1.80041972,3543.9,3543.8,0.33726]
[1641429383713,1.80041972,3543.9,3543.8,0.63726]
[1641429384111,1.80041972,3543.9,3543.8,0.33726]
[1641429384377,2.13341972,3543.9,3543.8,0.63726]
[1641429386279,2.46641972,3543.9,3543.8,0.63726]
[1641429386685,2.8616019,3544.0,3543.8,2.68611656]
[1641429386882,2.8616019,3544.0,3543.8,1.25028656]
[1641429387079,2.8616019,3544.0,3543.9,0.03496577]
[1641429387281,7.5465,3544.9,3543.9,0.37996577]
[1641429387481,0.00284212,3544.0,3543.9,0.37996577]
[1641429387681,1.2243,3545.0,3543.9,0.37996577]
[1641429387883,0.7743,3545.0,3543.9,0.345]
[1641429388123,0.7743,3545.0,3543.9,0.38123551]
[1641429388124,0.00454739,3544.8,3543.9,0.38123551]
[1641429388317,0.00454739,3544.8,3544.3,1.1285]
[1641429388519,0.00397896,3544.7,3544.4,0.345]
[1641429389016,0.00341054,3544.6,3544.5,0.7052824]
[1641429389218,0.00341054,3544.6,3544.5,1.0502824]
[1641429389618,0.00341054,3544.6,3544.5,1.6144924]
[1641429390622,0.33641054,3544.6,3544.5,1.9144924]
[1641429391021,0.33641054,3544.6,3544.5,1.6144924]
[1641429391419,0.33641054,3544.6,3544.5,1.9144924]
[1641429391619,0.33641054,3544.6,3544.5,1.6144924]
[1641429392354,0.666,3545.4,3544.8,1.0915679]
[1641429392557,0.01243015,3545.3,3544.8,1.0915679]
[1641429392759,0.01243015,3545.3,3543.9,3.145]
[1641429392760,1.35268344,3544.2,3543.9,2.8]
[1641429393159,1.35268344,3544.2,3544.0,0.00341054]
[1641429394363,0.70549,3544.6,3544.0,0.00341054]
[1641429394563,1.96450911,3545.3,3544.0,0.00341054]
[1641429394564,1.0,3545.2,3544.0,0.00341054]
[1641429394761,0.333,3544.6,3544.0,0.00341054]
[1641429394962,0.333,3544.6,3544.0,0.34841054]
[1641429395463,1.49954676,3544.6,3544.1,0.00284212]
[1641429396105,0.06378594,3544.6,3544.1,0.00284212]
[1641429396703,0.06378594,3544.6,3544.2,0.56431]
[1641429396905,0.39678594,3544.6,3544.2,0.56431]
[1641429397109,0.39678594,3544.6,3544.3,0.00170527]
[1641429397711,0.333,3544.6,3544.3,0.00170527]
[1641429397908,0.333,3544.6,3544.4,0.3831387]
[1641429398109,0.333,3544.6,3544.4,0.9831387]
[1641429398310,0.333,3544.6,3544.4,1.06136521]
[1641429398510,0.333,3544.6,3544.5,0.06554899]
[1641429398711,0.333,3544.6,3544.5,0.44989812]
[1641429398910,0.666,3544.6,3544.5,0.44989812]
[1641429399359,0.00341054,3545.2,3544.8,0.56411]
[1641429399562,0.00341054,3545.2,3544.9,0.645]
[1641429399764,0.00284212,3545.1,3544.9,0.67712866]
[1641429400164,0.00227369,3545.0,3544.9,2.0552084]
[1641429400764,0.999,3545.4,3544.9,2.0552084]
[1641429400765,0.999,3545.4,3544.9,3.71565899]
[1641429400965,0.3331,3545.4,3544.9,4.26376471]
[1641429401165,0.00170527,3545.3,3545.2,0.54810572]
[1641429401368,0.3331,3545.4,3545.3,0.54810572]
[1641429401566,0.3331,3545.4,3545.3,0.89310572]
[1641429401965,1.332,3545.9,3545.6,0.54810572]
[1641429402165,1.332,3545.9,3545.8,0.54810572]
[1641429402365,1.332,3545.9,3545.8,1.19310572]
[1641429403217,1.665,3545.9,3545.8,1.19310572]
[1641429405122,1.998,3545.9,3545.8,1.19310572]
[1641429405319,0.49478684,3545.9,3545.8,1.19310572]
[1641429405523,3.663,3546.8,3545.8,7.79910661]
[1641429405720,0.64857464,3546.0,3545.9,6.86510572]
[1641429405920,3.663,3546.8,3546.1,1.12745]
[1641429406120,3.663,3546.8,3546.5,0.54810572]
[1641429406319,3.663,3546.8,3546.7,0.54810572]
[1641429406523,4.5337776,3548.1,3547.2,0.54810572]
[1641429406865,7.223,3547.8,3547.4,0.54810572]
[1641429407062,7.223,3547.8,3547.5,0.89310572]
[1641429407262,0.666,3547.8,3547.5,0.89310572]
[1641429407971,0.666,3547.8,3547.7,0.54810572]
[1641429408167,0.666,3547.8,3547.7,1.19310572]
[1641429408367,0.68021059,3547.8,3547.7,1.19310572]
[1641429409371,1.01321059,3547.8,3547.7,1.19310572]
[1641429410272,1.01321059,3547.8,3547.7,1.22353375]
[1641429410709,3.3665776,3548.1,3547.7,1.22353375]
[1641429410909,3.3665776,3548.1,3548.0,0.54810572]
[1641429411110,3.8535,3548.7,3548.0,1.19310572]
[1641429411309,3.8535,3548.7,3548.0,1.22555841]
[1641429411310,0.333,3548.7,3548.0,1.22555841]
[1641429411508,0.00454739,3548.6,3548.0,1.49310572]
[1641429411713,0.00454739,3548.6,3548.0,0.89310572]
[1641429411908,0.00397896,3548.5,3548.0,1.19310572]
[1641429412112,0.00397896,3548.5,3548.0,0.89310572]
[1641429412316,0.00341054,3548.4,3547.6,0.99070504]
[1641429412718,0.00284212,3548.3,3547.6,0.99070504]
[1641429413015,0.00227369,3548.2,3547.6,0.99070504]
[1641429413217,0.77241311,3548.3,3547.5,2.8]
[1641429413416,0.77241311,3548.3,3547.7,0.00284211]
[1641429413616,0.333,3548.3,3547.6,0.56714054]
[1641429414016,0.333,3548.3,3547.7,0.34784211]
[1641429414218,0.333,3548.3,3547.7,0.38226149]
[1641429414465,0.333,3548.3,3547.8,0.00227369]
[1641429414764,0.333,3548.3,3547.9,0.345]